bitfinex/quotes_BTCUSD_20240818
["timestamp","ask_amount","ask_price","bid_price","bid_amount"]
[1723994253685,0.00825,59934.0,59933.0,0.50252679]
[1723994254117,0.00825,59934.0,59933.0,0.50252523]
[1723994254838,0.00825,59934.0,59933.0,0.56342523]
[1723994255437,0.00825,59934.0,59933.0,0.61342523]
[1723994256150,0.00825,59934.0,59933.0,0.47392523]
[1723994257472,0.00825,59934.0,59933.0,0.47392305]
[1723994259634,0.00825,59934.0,59933.0,0.52392305]
[1723994264019,0.00825,59934.0,59933.0,0.75751705]
[1723994264216,0.00825,59934.0,59933.0,0.52392305]
[1723994264461,0.00825,59934.0,59933.0,0.60342305]
[1723994264676,0.00825,59934.0,59933.0,0.66592305]
[1723994265773,0.00825,59934.0,59933.0,0.66592604]
[1723994265901,0.00825,59934.0,59933.0,0.89952004]
[1723994266300,0.00825,59934.0,59933.0,0.878985]
[1723994266370,0.00825,59934.0,59933.0,0.89952002]
[1723994266882,0.00825,59934.0,59933.0,0.89652002]
[1723994267074,0.00825,59934.0,59933.0,0.90252002]
[1723994267574,0.00825,59934.0,59933.0,1.13611402]
[1723994267766,0.00825,59934.0,59933.0,1.51338212]
[1723994267979,0.00825,59934.0,59933.0,1.58301068]
[1723994268321,0.00825,59934.0,59933.0,1.77476355]
[1723994268520,0.00825,59934.0,59933.0,1.73325025]
[1723994269125,0.00825,59934.0,59933.0,1.58301068]
[1723994269329,0.00825,59934.0,59933.0,1.58293042]
[1723994269540,0.00825,59934.0,59933.0,1.49276684]
[1723994269742,0.00825,59934.0,59933.0,1.58295921]
[1723994271675,0.00825,59934.0,59933.0,1.55699815]
[1723994271836,0.00825,59934.0,59933.0,1.58296093]
[1723994272345,0.00825,59934.0,59933.0,1.58296104]
[1723994273778,0.00825,59934.0,59933.0,1.54780973]
[1723994273994,0.00825,59934.0,59933.0,1.55699972]
[1723994274142,0.00825,59934.0,59933.0,1.58296537]
[1723994274345,0.00825,59934.0,59933.0,1.57377538]
[1723994275130,0.00825,59934.0,59933.0,1.5737855]
[1723994275537,0.00825,59934.0,59933.0,1.69873259]
[1723994275748,0.00825,59934.0,59933.0,1.5737855]
[1723994277125,0.00825,59934.0,59933.0,1.74534004]
[1723994277315,0.00825,59934.0,59933.0,2.10387177]
[1723994277541,0.00825,59934.0,59933.0,1.97893404]
[1723994278458,0.00825,59934.0,59933.0,2.10387798]
[1723994278591,0.00825,59934.0,59933.0,2.10387479]
[1723994279106,0.00825,59934.0,59933.0,1.9789538]
[1723994279249,0.00825,59934.0,59933.0,2.33846122]
[1723994279457,0.00825,59936.0,59933.0,2.33846122]
[1723994279458,0.00825,59936.0,59935.0,1.052137]
[1723994279730,0.00825,59936.0,59935.0,2.12001856]
[1723994279921,0.00825,59936.0,59935.0,2.13121055]
[1723994281046,0.00825,59936.0,59935.0,2.08814247]
[1723994281465,0.00825,59936.0,59935.0,1.95704532]
[1723994281565,0.00825,59936.0,59935.0,2.02129448]
[1723994281747,0.00825,59936.0,59935.0,2.01829448]
[1723994282169,0.00825,59936.0,59935.0,2.042223]
[1723994283409,0.00825,59936.0,59935.0,2.16698552]
[1723994283957,0.00825,59936.0,59935.0,3.66698552]
[1723994284754,0.00825,59936.0,59935.0,3.64098106]
[1723994284958,0.00825,59936.0,59935.0,3.66693543]
[1723994285234,0.00825,59936.0,59935.0,3.54217291]
[1723994285770,0.00825,59936.0,59935.0,3.46097291]
[1723994286132,0.00825,59936.0,59935.0,3.54217291]
[1723994286289,0.00825,59936.0,59935.0,3.64193519]
[1723994286517,0.00825,59936.0,59935.0,3.64393519]
[1723994286701,0.00825,59936.0,59935.0,2.14193519]
[1723994287458,0.00825,59936.0,59935.0,2.14393519]
[1723994288251,0.00825,59936.0,59935.0,2.14193519]
[1723994288461,0.00825,59936.0,59935.0,1.66180206]
[1723994288756,0.00825,59936.0,59935.0,1.61533131]
[1723994288939,0.00825,59936.0,59935.0,1.58082006]
[1723994289074,0.00825,59936.0,59935.0,1.66180728]
[1723994289851,0.00825,59936.0,59935.0,2.10678228]
[1723994290036,0.00825,59936.0,59935.0,2.09685376]
[1723994290441,0.00825,59936.0,59935.0,1.72668339]
[1723994290660,0.00825,59936.0,59935.0,1.72667516]
[1723994290868,0.00825,59936.0,59935.0,2.09684409]
[1723994291487,0.00825,59936.0,59935.0,1.73586073]
[1723994291760,0.08645,59936.0,59935.0,1.11052019]
[1723994291954,0.08645,59936.0,59935.0,1.00058259]
[1723994293121,0.08645,59936.0,59935.0,0.945551]
[1723994293224,0.08645,59936.0,59935.0,1.00059502]
[1723994294359,0.00825,59936.0,59935.0,1.00059502]
[1723994294593,0.00825,59936.0,59935.0,1.0764274]
[1723994294888,0.00825,59936.0,59935.0,1.08561496]
[1723994295108,0.00825,59936.0,59935.0,1.03574368]
[1723994295340,0.00825,59936.0,59935.0,1.08562236]
[1723994295572,0.00825,59936.0,59935.0,1.03057834]
[1723994295797,0.00825,59936.0,59935.0,1.08561521]
[1723994296249,0.00825,59936.0,59935.0,1.03573653]
[1723994296503,0.00825,59936.0,59935.0,1.65689509]
[1723994296726,0.00825,59936.0,59935.0,1.65989509]
[1723994296992,0.0002,59939.0,59938.0,0.893709]
[1723994297297,0.0002,59939.0,59938.0,1.30164797]
[1723994297440,0.0002,59939.0,59938.0,1.53522197]
[1723994297849,0.0002,59939.0,59938.0,1.58610982]
[1723994298049,0.0002,59939.0,59938.0,1.60010982]
[1723994298577,0.0002,59939.0,59938.0,1.47322461]
[1723994298681,0.0002,59939.0,59938.0,1.60978084]
[1723994298872,0.0002,59939.0,59938.0,1.60578084]
[1723994299304,0.0002,59939.0,59938.0,1.56421855]
[1723994300373,0.0002,59939.0,59938.0,1.57444774]
[1723994301237,0.0002,59939.0,59938.0,1.57444488]
[1723994301450,0.0002,59939.0,59938.0,1.94659795]
[1723994301675,0.0002,59939.0,59938.0,1.91863934]
[1723994301848,0.0002,59939.0,59938.0,1.94859485]
[1723994302812,0.001025,59939.0,59938.0,1.94859485]
[1723994303241,0.001025,59939.0,59938.0,1.94459485]
[1723994303430,0.001025,59939.0,59938.0,2.04438266]
[1723994304553,0.001025,59939.0,59938.0,2.04441342]
[1723994305330,0.001025,59939.0,59938.0,1.88955838]
[1723994305455,0.001025,59939.0,59938.0,1.86339073]
[1723994305621,0.001025,59939.0,59938.0,1.94459073]
[1723994307044,0.001025,59939.0,59938.0,1.98615016]
[1723994308850,0.001025,59939.0,59938.0,1.98615975]
[1723994309457,0.001025,59939.0,59938.0,1.86360299]
[1723994309481,0.001025,59939.0,59938.0,1.98616791]
[1723994310365,0.001025,59939.0,59938.0,2.13590255]
[1723994310579,0.001025,59939.0,59938.0,2.09433729]
[1723994310774,0.001025,59939.0,59938.0,2.13590255]
[1723994310999,0.001025,59939.0,59938.0,2.09433729]
[1723994311209,0.001025,59939.0,59938.0,2.13590255]
[1723994311382,0.001025,59939.0,59938.0,1.94460265]
[1723994311580,0.001025,59939.0,59938.0,1.98616791]
[1723994311755,0.001025,59939.0,59938.0,1.94460265]
[1723994311971,0.00825,59954.0,59953.0,0.116758]
[1723994312142,0.00825,59954.0,59953.0,0.82584819]
[1723994312342,0.00825,59954.0,59953.0,1.22094779]
[1723994312590,0.00825,59954.0,59953.0,1.56490446]
[1723994312953,0.08335,59954.0,59953.0,1.52114724]
[1723994313173,0.08335,59954.0,59953.0,1.64610446]
[1723994313379,0.08335,59954.0,59953.0,1.64810446]
[1723994313727,0.08335,59954.0,59953.0,1.62219018]
[1723994313964,0.08335,59954.0,59953.0,1.61734638]
[1723994314121,0.08335,59954.0,59953.0,1.65029783]
[1723994314267,0.08335,59954.0,59953.0,1.49633567]
[1723994314703,0.08335,59954.0,59953.0,1.12624366]
[1723994315097,0.08335,59954.0,59953.0,1.49633447]
[1723994315274,0.08335,59954.0,59953.0,1.52828588]
[1723994315618,0.08335,59954.0,59953.0,1.50233449]
[1723994316516,0.08335,59954.0,59953.0,1.60229558]
[1723994317156,0.08335,59954.0,59953.0,1.60228333]
[1723994317629,0.00825,59954.0,59953.0,1.56777729]
[1723994318180,0.00825,59954.0,59953.0,1.80229326]
[1723994318544,0.00825,59954.0,59953.0,1.87634784]
[1723994318738,0.00825,59954.0,59953.0,2.02723541]
[1723994320094,0.00825,59954.0,59953.0,1.79371941]
[1723994320292,0.00825,59954.0,59953.0,1.64283184]
[1723994320722,0.00825,59954.0,59953.0,1.87634784]
[1723994321603,0.00825,59954.0,59953.0,1.79514784]
[1723994321809,0.00825,59954.0,59953.0,1.42113184]
[1723994322014,0.00825,59954.0,59953.0,1.50233184]
[1723994322221,0.00825,59954.0,59953.0,1.60223733]
[1723994322844,0.00825,59954.0,59953.0,1.60223372]
[1723994324340,0.00825,59954.0,59953.0,1.6281826]
[1723994325704,0.00825,59954.0,59953.0,1.54721562]
[1723994325764,0.00825,59954.0,59953.0,1.6281775]
[1723994325991,0.00825,59954.0,59953.0,1.54721562]
[1723994326307,0.07205,59954.0,59953.0,1.349474]
[1723994326416,0.15315,59954.0,59953.0,0.89493247]
[1723994326620,0.15315,59954.0,59953.0,0.84498068]
[1723994328160,0.15315,59954.0,59953.0,0.89498068]
[1723994329733,0.15315,59954.0,59953.0,0.89498731]
[1723994332160,0.15315,59954.0,59953.0,0.94494367]
[1723994332388,0.15315,59954.0,59953.0,0.99494367]
[1723994332544,0.05315,59954.0,59953.0,0.94498731]
[1723994333219,0.05315,59954.0,59953.0,1.02618731]
[1723994333910,0.05315,59954.0,59953.0,1.02618552]
[1723994335044,0.0002,59959.0,59958.0,0.116748]
[1723994335244,0.0002,59959.0,59958.0,0.3707598]
[1723994335458,0.0002,59959.0,59958.0,0.6042558]
[1723994335649,0.1458,59959.0,59958.0,0.6042558]
[1723994336612,0.1458,59959.0,59958.0,0.1372638]
[1723994337079,0.1458,59959.0,59958.0,0.3707598]
[1723994337302,0.1458,59959.0,59958.0,0.1372638]
[1723994337902,0.1456,59958.0,59954.0,0.233511]
[1723994338091,0.0002,59959.0,59954.0,0.233511]
[1723994338092,0.0643,59957.0,59956.0,0.116751]
[1723994338315,0.0643,59957.0,59956.0,0.13726896]
[1723994338316,0.1456,59957.0,59956.0,0.13726896]
[1723994338632,0.1456,59957.0,59956.0,0.116751]
[1723994339258,0.1456,59957.0,59956.0,0.350255]
[1723994339454,0.1456,59957.0,59956.0,0.37077413]
[1723994339663,0.1456,59957.0,59956.0,0.37277413]
[1723994340492,0.146425,59957.0,59956.0,0.37377413]
[1723994340696,0.082125,59957.0,59956.0,0.37377413]
[1723994340929,0.082125,59957.0,59956.0,0.37177413]
[1723994341131,0.082125,59957.0,59956.0,0.352255]
[1723994341488,0.082125,59957.0,59956.0,0.37277258]
[1723994341974,0.082125,59957.0,59956.0,0.37177258]
[1723994342280,0.082125,59957.0,59956.0,0.60527658]
[1723994343602,0.000825,59957.0,59956.0,0.83878058]
[1723994344011,0.000825,59957.0,59956.0,0.83778058]
[1723994344340,0.000825,59957.0,59956.0,0.83978058]
[1723994345120,0.000825,59957.0,59956.0,0.819263]
[1723994345308,0.000825,59957.0,59956.0,0.84077967]
[1723994345453,0.000825,59957.0,59956.0,0.89078692]
[1723994347481,0.000825,59957.0,59956.0,0.91579055]
[1723994347894,0.000825,59957.0,59956.0,1.28588792]
[1723994349218,0.000825,59957.0,59956.0,1.26537125]
[1723994349471,0.000825,59957.0,59956.0,1.28588455]
[1723994350122,0.000825,59957.0,59956.0,1.21087367]
[1723994350896,0.000825,59957.0,59956.0,1.34539079]
[1723994351255,0.000825,59957.0,59956.0,1.42409079]
[1723994351454,0.000825,59957.0,59956.0,1.48519079]
[1723994352067,0.000825,59957.0,59956.0,1.65674533]
[1723994352266,0.000825,59957.0,59956.0,1.70769676]
[1723994353085,0.000825,59957.0,59956.0,1.94120076]
[1723994353438,0.000825,59957.0,59956.0,1.91524763]
[1723994353537,0.000825,59957.0,59956.0,1.94123584]
[1723994354870,0.000825,59957.0,59956.0,1.3963773]
[1723994357977,0.000825,59957.0,59956.0,0.90122098]
[1723994358180,0.000825,59957.0,59956.0,1.39641221]
[1723994358377,0.000825,59957.0,59956.0,1.37046482]
[1723994359047,0.000825,59957.0,59956.0,1.59006482]
[1723994360097,0.000825,59957.0,59956.0,1.76161936]
[1723994360321,0.000825,59957.0,59956.0,1.63651919]
[1723994360470,0.000825,59957.0,59956.0,1.66246724]
[1723994360699,0.000825,59957.0,59956.0,1.67164882]
[1723994361053,0.000825,59957.0,59956.0,2.33984974]
[1723994361493,0.000825,59957.0,59956.0,1.82176902]
[1723994361878,0.000825,59957.0,59956.0,2.33984974]
[1723994362103,0.000825,59957.0,59956.0,2.33983819]
[1723994362256,0.000825,59957.0,59956.0,2.34995716]
[1723994362456,0.000825,59957.0,59956.0,1.83187644]
[1723994362656,0.000825,59957.0,59956.0,1.83176814]
[1723994362835,0.000825,59957.0,59956.0,2.34984271]
[1723994363722,0.000825,59957.0,59956.0,2.58334671]
[1723994363915,0.000825,59957.0,59956.0,2.06527214]
[1723994364140,0.000825,59957.0,59956.0,2.58334671]
[1723994364319,0.000825,59957.0,59956.0,2.06527214]
[1723994365485,0.000825,59957.0,59956.0,1.91522245]
[1723994365667,0.000825,59957.0,59956.0,1.91527174]
[1723994367241,0.000825,59957.0,59956.0,1.54521847]
[1723994367455,0.000825,59957.0,59956.0,1.91526967]
[1723994369553,0.000825,59957.0,59956.0,1.8239507]
[1723994369717,0.000825,59957.0,59956.0,1.9051507]
[1723994370293,0.000825,59957.0,59956.0,1.8239507]
[1723994370513,0.000825,59957.0,59956.0,1.9051507]
[1723994372024,0.000825,59957.0,59956.0,1.90515017]
[1723994374023,0.000825,59957.0,59956.0,1.84096955]
[1723994374172,0.000825,59957.0,59956.0,1.90411825]
[1723994374617,0.000825,59957.0,59956.0,1.89112095]
[1723994374770,0.000825,59957.0,59956.0,1.91511058]
[1723994374910,0.000825,59957.0,59956.0,1.90211156]
[1723994375112,0.000825,59957.0,59956.0,1.91611156]
[1723994375331,0.000825,59957.0,59956.0,1.93011156]
[1723994375932,0.000825,59957.0,59956.0,1.90211156]
[1723994376357,0.000825,59957.0,59956.0,1.91611156]
[1723994376534,0.000825,59957.0,59956.0,1.90211156]
[1723994376738,0.000825,59957.0,59956.0,1.8669473]
[1723994376916,0.000825,59957.0,59956.0,1.90211436]
[1723994377704,0.000825,59957.0,59956.0,1.91511436]
[1723994377881,0.000825,59957.0,59956.0,1.92911436]
[1723994378085,0.000825,59957.0,59956.0,1.91611436]
[1723994378331,0.000825,59957.0,59956.0,1.93011436]
[1723994378699,0.000825,59957.0,59956.0,1.85401436]
[1723994380108,0.000825,59957.0,59956.0,1.79171436]
[1723994380310,0.082725,59957.0,59956.0,1.30545582]
[1723994382407,0.082725,59957.0,59956.0,1.28498446]
[1723994382557,0.082725,59957.0,59956.0,1.30548841]
[1723994383341,0.082725,59957.0,59956.0,1.27030871]
[1723994383494,0.082725,59957.0,59956.0,1.30548871]
[1723994383675,0.082725,59957.0,59956.0,1.29630864]
[1723994384522,0.145725,59957.0,59956.0,0.59579664]
[1723994384674,0.145725,59957.0,59956.0,0.16525595]
[1723994385077,0.145725,59957.0,59956.0,0.39875995]
[1723994385218,0.145725,59957.0,59956.0,0.37075995]
[1723994385422,0.145725,59957.0,59956.0,0.350256]
[1723994385668,0.145725,59957.0,59956.0,0.371256]
[1723994385885,0.145725,59957.0,59956.0,0.126752]
[1723994386114,0.145725,59957.0,59956.0,0.357256]
[1723994387783,0.145725,59957.0,59956.0,0.129752]
[1723994388496,0.145725,59957.0,59956.0,0.116752]
[1723994388708,0.145725,59957.0,59956.0,0.351256]
[1723994389175,0.145725,59957.0,59956.0,0.350256]
[1723994389388,0.145725,59957.0,59956.0,0.351256]
[1723994389831,0.145725,59957.0,59956.0,0.58476]
[1723994390050,0.145725,59957.0,59956.0,0.6052696]
[1723994390464,0.145725,59957.0,59956.0,0.60526902]
[1723994390916,0.145725,59957.0,59956.0,0.60426802]
[1723994391140,0.145725,59957.0,59956.0,0.60626802]
[1723994391811,0.145725,59957.0,59956.0,0.37376402]
[1723994392048,0.145725,59957.0,59956.0,0.60726802]
[1723994393135,0.145725,59957.0,59956.0,0.37376402]
[1723994394036,0.145725,59957.0,59956.0,0.60726802]
[1723994394954,0.145725,59957.0,59956.0,0.58676]
[1723994395215,0.145725,59957.0,59956.0,0.60726771]
[1723994396168,0.145725,59957.0,59956.0,0.58676]
[1723994396932,0.145725,59957.0,59956.0,0.403256]
[1723994398346,0.082725,59957.0,59956.0,0.63676]
[1723994399306,0.082725,59957.0,59956.0,0.403256]
[1723994401094,0.082725,59957.0,59956.0,0.453256]
[1723994401295,0.146425,59957.0,59956.0,0.453256]
[1723994401724,0.146425,59957.0,59956.0,0.103]
[1723994402167,0.146425,59957.0,59956.0,0.219752]
[1723994402627,0.146425,59957.0,59956.0,0.218752]
[1723994403094,0.146425,59957.0,59956.0,0.220752]
[1723994403744,0.146425,59957.0,59956.0,0.454256]
[1723994403950,0.082725,59957.0,59956.0,0.452256]
[1723994404156,0.082725,59957.0,59956.0,0.68576]
[1723994404355,0.082725,59957.0,59956.0,0.68676]
[1723994404562,0.082725,59957.0,59956.0,0.68576]
[1723994404984,0.082725,59957.0,59956.0,0.73676]
[1723994405392,0.082725,59957.0,59956.0,0.73476]
[1723994405768,0.082725,59957.0,59956.0,0.73676]
[1723994406744,0.000825,59957.0,59956.0,0.73676]
[1723994406956,0.000825,59957.0,59956.0,1.034064]
[1723994407190,0.000825,59957.0,59956.0,1.13436715]
[1723994407412,0.000825,59957.0,59956.0,1.18432677]
[1723994408292,0.000825,59957.0,59956.0,1.18332677]
[1723994408497,0.000825,59957.0,59956.0,1.19132677]
[1723994408714,0.000825,59957.0,59956.0,1.18932677]
[1723994408916,0.000825,59957.0,59956.0,1.14836715]
[1723994409119,0.000825,59957.0,59956.0,1.19836715]
[1723994409987,0.000825,59957.0,59956.0,1.9624156]
[1723994410331,0.000825,59957.0,59956.0,1.86249635]
[1723994410622,0.000825,59957.0,59956.0,1.83643517]
[1723994410753,0.000825,59957.0,59956.0,1.96687997]
[1723994410992,0.000825,59957.0,59956.0,1.98736237]
[1723994413262,0.000825,59957.0,59956.0,2.03736237]
[1723994416123,0.000825,59957.0,59956.0,2.20891691]
[1723994417126,0.000825,59957.0,59956.0,2.08401785]
[1723994417888,0.000825,59957.0,59956.0,2.29002371]
[1723994418207,0.000825,59957.0,59956.0,2.27302371]
[1723994418404,0.000825,59957.0,59956.0,2.27302125]
[1723994418627,0.000825,59957.0,59956.0,2.30102125]
[1723994419263,0.000825,59957.0,59956.0,2.28702125]
[1723994419458,0.000825,59957.0,59956.0,2.27302125]
[1723994420240,0.000825,59957.0,59956.0,2.28702125]
[1723994420438,0.000825,59957.0,59956.0,2.16221539]
[1723994420688,0.000825,59957.0,59956.0,2.17621539]
[1723994421526,0.000825,59957.0,59956.0,2.14821539]
[1723994421730,0.000825,59957.0,59956.0,2.16221539]
[1723994421927,0.000825,59957.0,59956.0,2.17621539]
[1723994423408,0.000825,59957.0,59956.0,2.15016872]
[1723994423410,0.000825,59957.0,59956.0,2.12125197]
[1723994423616,0.000825,59957.0,59956.0,2.17620993]
[1723994425447,0.000825,59957.0,59956.0,2.185383]
[1723994426153,0.000825,59957.0,59956.0,2.18533859]
[1723994427767,0.000825,59957.0,59956.0,2.10413859]
[1723994427958,0.000825,59957.0,59956.0,2.17616552]
[1723994428080,0.000825,59957.0,59956.0,2.18533853]
[1723994430394,0.000825,59957.0,59956.0,2.17616552]
[1723994430645,0.000825,59957.0,59956.0,1.80612168]
[1723994430861,0.000825,59957.0,59956.0,2.17617452]
[1723994431477,0.000825,59957.0,59956.0,2.18533949]
[1723994431903,0.000825,59957.0,59956.0,2.17617452]
[1723994432310,0.000825,59957.0,59956.0,2.18533922]
[1723994433871,0.000825,59957.0,59956.0,1.95183522]
[1723994435104,0.000825,59957.0,59956.0,1.95178005]
[1723994435525,0.000825,59957.0,59956.0,1.88771256]
[1723994435757,0.000825,59957.0,59956.0,1.95178463]
[1723994436096,0.000825,59957.0,59956.0,1.95178594]
[1723994437010,0.000825,59957.0,59956.0,1.55541538]
[1723994437212,0.076125,59957.0,59956.0,1.54624917]
[1723994437396,0.076125,59957.0,59956.0,1.17619502]
[1723994437613,0.076125,59957.0,59956.0,1.15017562]
[1723994437832,0.076125,59957.0,59956.0,1.52026367]
[1723994439108,0.076125,59957.0,59956.0,1.59511709]
[1723994439514,0.137925,59957.0,59956.0,1.59511709]
[1723994439710,0.137925,59957.0,59956.0,1.15017562]
[1723994440451,0.137925,59957.0,59956.0,0.88223322]
[1723994441258,0.137925,59957.0,59956.0,0.85423322]
[1723994441407,0.137925,59957.0,59956.0,0.89467851]
[1723994441408,0.076125,59957.0,59956.0,0.89467851]
[1723994441633,0.076125,59957.0,59956.0,0.90167851]
[1723994443396,0.076125,59957.0,59956.0,0.86723322]
[1723994443506,0.000825,59957.0,59956.0,0.86723322]
[1723994447473,0.000825,59957.0,59956.0,0.86724023]
[1723994448105,0.000825,59957.0,59956.0,0.86724035]
[1723994449645,0.000825,59957.0,59956.0,1.23733306]
[1723994450712,0.000825,59957.0,59956.0,1.33721935]
[1723994451386,0.000825,59957.0,59956.0,0.86724035]
[1723994451598,0.000825,59957.0,59956.0,1.27178765]
[1723994452422,0.000825,59957.0,59956.0,1.39668999]
[1723994452604,0.000825,59957.0,59956.0,1.39669058]
[1723994455279,0.000825,59957.0,59956.0,1.33722261]
[1723994455481,0.149025,59957.0,59956.0,1.23732518]
[1723994455687,0.149025,59957.0,59956.0,0.94216874]
[1723994455886,0.149025,59957.0,59956.0,1.31227538]
[1723994456475,0.149025,59957.0,59956.0,1.07877138]
[1723994456679,0.149025,59957.0,59956.0,0.28348035]
[1723994456982,0.149025,59957.0,59956.0,0.263]
[1723994457597,0.149025,59957.0,59956.0,0.256]
[1723994457809,0.149025,59957.0,59956.0,0.25]
[1723994458015,0.149025,59957.0,59956.0,0.256]
[1723994460727,0.230225,59957.0,59956.0,0.256]
[1723994461175,0.149025,59957.0,59956.0,0.372752]
[1723994461309,0.000825,59957.0,59956.0,0.98296]
[1723994461438,0.000825,59957.0,59956.0,1.54533595]
[1723994461622,0.000825,59957.0,59956.0,2.1973761]
[1723994461840,0.000825,59957.0,59956.0,2.0705582]
[1723994462070,0.000825,59957.0,59956.0,2.04453038]
[1723994462283,0.000825,59957.0,59956.0,2.07154666]
[1723994462928,0.000825,59957.0,59956.0,2.06754666]
[1723994463161,0.000825,59957.0,59956.0,2.07054666]
[1723994463513,0.000825,59957.0,59956.0,2.06954666]
[1723994463727,0.000825,59957.0,59956.0,2.06654554]
[1723994463864,0.000825,59957.0,59956.0,2.08054554]
[1723994464070,0.000825,59957.0,59956.0,2.09454554]
[1723994464268,0.000825,59957.0,59956.0,2.08054554]
[1723994464721,0.000825,59957.0,59956.0,2.06654554]
[1723994465035,0.000825,59957.0,59956.0,2.08054554]
[1723994465243,0.000825,59957.0,59956.0,1.84704154]
[1723994465491,0.000825,59957.0,59956.0,1.91424154]
[1723994466060,0.000825,59957.0,59956.0,1.92824154]
[1723994466692,0.000825,59957.0,59956.0,1.94224154]
[1723994467914,0.000825,59957.0,59956.0,2.17574554]
[1723994468149,0.000825,59957.0,59956.0,2.27574554]
[1723994468315,0.000825,59957.0,59956.0,2.28491026]
[1723994468519,0.000825,59957.0,59956.0,3.78486579]
[1723994469223,0.000825,59957.0,59956.0,2.28486579]
[1723994469713,0.000825,59957.0,59956.0,2.27086579]
[1723994470088,0.000825,59957.0,59956.0,2.28486579]
[1723994470444,0.000825,59957.0,59956.0,2.27086579]
[1723994470699,0.000825,59957.0,59956.0,2.28486579]
[1723994472899,0.000825,59957.0,59956.0,2.28489091]
[1723994473218,0.000825,59957.0,59956.0,2.19478028]
[1723994473480,0.000825,59957.0,59956.0,2.03489091]
[1723994473628,0.000825,59957.0,59956.0,2.08489091]
[1723994474462,0.000825,59957.0,59956.0,2.08489097]
[1723994475074,0.000825,59957.0,59956.0,2.08589097]
[1723994475281,0.000825,59957.0,59956.0,2.08989097]
[1723994475512,0.000825,59957.0,59956.0,2.11289097]
[1723994476801,0.000825,59957.0,59956.0,2.07766513]
[1723994477007,0.000825,59957.0,59956.0,2.10888898]
[1723994477743,0.000825,59957.0,59956.0,2.15888898]
[1723994478393,0.000825,59957.0,59956.0,2.16713898]
[1723994479688,0.000825,59957.0,59956.0,2.08493898]
[1723994479929,0.000825,59957.0,59956.0,2.1431404]
[1723994480574,0.000825,59957.0,59956.0,2.04492781]
[1723994480808,0.000825,59957.0,59956.0,1.98253579]
[1723994481725,0.000825,59957.0,59956.0,2.03253579]
[1723994482836,0.000825,59957.0,59956.0,1.54627725]
[1723994483067,0.000825,59957.0,59956.0,1.52000055]
[1723994483275,0.000825,59957.0,59956.0,1.25206993]
[1723994483474,0.000825,59957.0,59956.0,1.15228395]
[1723994485545,0.000825,59957.0,59956.0,1.25206993]
[1723994485969,0.000825,59957.0,59956.0,1.30206993]
[1723994486534,0.000825,59957.0,59956.0,1.53557393]
[1723994487170,0.000825,59957.0,59956.0,1.30206993]
[1723994487445,0.000825,59957.0,59956.0,1.33650438]
[1723994489224,0.000825,59957.0,59956.0,1.36256944]
[1723994489395,0.000825,59957.0,59956.0,1.36255818]
[1723994489598,0.000825,59957.0,59956.0,1.33649312]
[1723994489986,0.000825,59957.0,59956.0,1.61999712]
[1723994490232,0.000825,59957.0,59956.0,1.64606316]
[1723994490633,0.000825,59957.0,59956.0,1.61999712]
[1723994491037,0.000825,59957.0,59956.0,1.38649312]
[1723994491251,0.000825,59957.0,59956.0,1.38648221]
[1723994491445,0.000825,59957.0,59956.0,1.52021149]
[1723994491699,0.000825,59957.0,59956.0,1.38648221]
[1723994492115,0.000825,59957.0,59956.0,1.28670749]
[1723994492314,0.000825,59957.0,59956.0,1.52021149]
[1723994492561,0.000825,59957.0,59956.0,1.61998621]
[1723994493294,0.000825,59957.0,59956.0,1.36154699]
[1723994493490,0.082325,59957.0,59956.0,0.95706454]
[1723994493916,0.082325,59957.0,59956.0,1.28674456]
[1723994494116,0.082325,59957.0,59956.0,1.32715794]
[1723994494486,0.082325,59957.0,59956.0,1.31315794]
[1723994494702,0.082325,59957.0,59956.0,1.29915794]
[1723994494904,0.082325,59957.0,59956.0,1.30915794]
[1723994495334,0.082325,59957.0,59956.0,1.46782157]
[1723994496173,0.082325,59957.0,59956.0,1.24531759]
[1723994496601,0.082325,59957.0,59956.0,1.3201583]
[1723994497424,0.082325,59957.0,59956.0,0.95006649]
[1723994497729,0.082325,59957.0,59956.0,1.32016235]
[1723994498468,0.082325,59957.0,59956.0,0.95006649]
[1723994499452,0.082325,59957.0,59956.0,0.87522578]
[1723994500334,0.082325,59957.0,59956.0,1.24531969]
[1723994500565,0.082325,59957.0,59956.0,1.32005108]
[1723994500799,0.082325,59957.0,59956.0,1.24531969]
[1723994501045,0.082325,59957.0,59956.0,1.2452907]
[1723994501437,0.082325,59957.0,59956.0,1.37929868]
[1723994502025,0.082325,59957.0,59956.0,1.37931277]
[1723994502228,0.082325,59957.0,59956.0,1.37931334]
[1723994503919,0.082325,59957.0,59956.0,1.22485391]
[1723994504195,0.082325,59957.0,59956.0,1.43024164]
[1723994504314,0.000825,59957.0,59956.0,1.43024164]
[1723994504518,0.000825,59957.0,59956.0,1.27964551]
[1723994504719,0.000825,59957.0,59956.0,1.37930904]
[1723994504920,0.000825,59957.0,59956.0,1.32450203]
[1723994505308,0.000825,59957.0,59956.0,1.37931191]
[1723994505338,0.000825,59957.0,59956.0,1.27964838]
[1723994505528,0.000825,59957.0,59956.0,1.27965347]
[1723994505980,0.000825,59957.0,59956.0,1.22484359]
[1723994506222,0.000825,59957.0,59956.0,1.27965327]
[1723994506762,0.000825,59957.0,59956.0,1.51315727]
[1723994507006,0.000825,59957.0,59956.0,1.48544947]
[1723994507210,0.000825,59957.0,59956.0,1.70297453]
[1723994509385,0.000825,59957.0,59956.0,1.6768922]
[1723994509593,0.000825,59957.0,59956.0,1.70288957]
[1723994510264,0.000825,59957.0,59956.0,1.70287307]
[1723994511636,0.000825,59957.0,59956.0,1.82737408]
[1723994511842,0.000825,59957.0,59956.0,1.70287307]
[1723994512405,0.000825,59957.0,59956.0,1.62213109]
[1723994512430,0.000825,59957.0,59956.0,1.70290477]
[1723994513924,0.000825,59957.0,59956.0,1.67689957]
[1723994514206,0.000825,59957.0,59956.0,1.71205043]
[1723994514407,0.000825,59957.0,59956.0,1.68604167]
[1723994514515,0.000825,59957.0,59956.0,1.70290763]
[1723994514733,0.000825,59957.0,59956.0,1.7029042]
[1723994515776,0.000825,59957.0,59956.0,1.70290185]